bitfinex-derivatives/quotes_SOLF0:USTF0_20260305
["timestamp","ask_amount","ask_price","bid_price","bid_amount"]
[1772747006313,3.54937687,89.12,89.092,9.57507079]
[1772747007115,3.54937687,89.11,89.08,9.57507079]
[1772747018632,3.54812501,89.11,89.08,9.57507079]
[1772747024928,5.65107523,89.108,89.069,9.43485836]
[1772747025137,3.54812501,89.1,89.069,9.43485836]
[1772747027540,10.098,89.107,89.069,9.43485836]
[1772747028040,3.54812501,89.11,89.072,9.43485836]
[1772747028246,10.097,89.114,89.072,9.43485836]
[1772747028636,17.42011703,89.117,89.084,9.43485836]
[1772747028838,8.96370925,89.119,89.084,9.43485836]
[1772747029034,12.00437624,89.12,89.084,9.43485836]
[1772747029242,3.54812501,89.12,89.084,9.43485836]
[1772747029439,17.41996048,89.126,89.084,9.43485836]
[1772747029644,10.094,89.143,89.084,9.43485836]
[1772747029645,3.54812501,89.13,89.084,9.43485836]
[1772747030138,3.54812501,89.13,89.09,9.43485836]
[1772747031141,3.54812501,89.12,89.09,9.43485836]
[1772747039149,3.54812501,89.1,89.071,9.43485836]
[1772747041054,5.70510698,89.129,89.074,9.42718624]
[1772747041251,3.54812501,89.12,89.074,9.42718624]
[1772747041446,5.70510698,89.129,89.074,9.42718624]
[1772747041447,3.54812501,89.11,89.074,9.42718624]
[1772747042358,3.54812501,89.11,89.074,19.52918624]
[1772747042554,3.54812501,89.11,89.075,9.42718624]
[1772747043356,3.54812501,89.11,89.076,10.102]
[1772747043656,3.54812501,89.11,89.077,9.42718624]
[1772747045256,9.25323199,89.118,89.083,9.42718624]
[1772747046256,10.097,89.117,89.083,9.42718624]
[1772747046462,3.54812501,89.11,89.083,9.42718624]
[1772747049762,10.097,89.115,89.083,9.42718624]
[1772747050558,3.54812501,89.11,89.083,9.42718624]
[1772747052763,9.25323199,89.118,89.083,9.42718624]
[1772747053364,3.54812501,89.11,89.083,9.42718624]
[1772747053759,13.64612501,89.11,89.083,9.42718624]
[1772747054363,3.54812501,89.11,89.083,9.42718624]
[1772747055059,10.097,89.117,89.083,9.42718624]
[1772747055561,3.54812501,89.1,89.06,9.42718624]
[1772747055864,9.4708939,89.107,89.06,9.42718624]
[1772747057364,10.098,89.106,89.061,10.103]
[1772747057858,10.098,89.106,89.062,9.42718624]
[1772747059368,10.098,89.106,89.066,9.42718624]
[1772747060071,3.54812501,89.11,89.07,9.42718624]
[1772747061368,3.54812501,89.11,89.074,10.102]
[1772747061567,3.54812501,89.11,89.075,9.42718624]
[1772747066677,3.54812501,89.11,89.078,9.42718624]
[1772747068473,3.54812501,89.11,89.079,10.101]
[1772747068674,3.54812501,89.11,89.08,10.04873053]
[1772747070572,9.4708939,89.117,89.081,10.101]
[1772747070772,3.54812501,89.11,89.081,10.101]
[1772747071179,3.54812501,89.11,89.081,20.22677368]
[1772747072083,3.54812501,89.11,89.081,10.12577368]
[1772747075286,9.4708939,89.117,89.081,10.12577368]
[1772747078388,3.54812501,89.11,89.081,10.12577368]
[1772747080485,3.54760606,89.11,89.081,10.12577368]
[1772747100499,10.098,89.109,89.081,10.12577368]
[1772747100695,3.54760606,89.11,89.081,10.12577368]
[1772747101995,3.54760606,89.14,89.082,10.06964745]
[1772747102293,3.54760606,89.15,89.101,10.06964745]
[1772747102496,3.54760606,89.14,89.101,10.06964745]
[1772747103401,12.96604054,89.14,89.101,10.06964745]
[1772747103593,3.54760606,89.13,89.101,10.06964745]
[1772747103903,3.54760606,89.12,89.101,10.06964745]
[1772747109403,3.54760606,89.11,89.07,10.06964745]
[1772747109603,3.54760606,89.1,89.07,10.06964745]
[1772747111311,3.54760606,89.09,89.045,10.06964745]
[1772747111518,3.54760606,89.08,89.045,10.06964745]
[1772747112410,3.54760606,89.08,89.046,10.105]
[1772747112711,3.54760606,89.08,89.047,10.06964745]
[1772747115718,10.101,89.086,89.047,10.06964745]
[1772747115928,3.54760606,89.08,89.047,10.06964745]
[1772747120729,3.54760606,89.06,89.027,10.06964745]
[1772747121117,9.41843448,89.069,89.027,10.06964745]
[1772747121322,3.54760606,89.07,89.027,10.06964745]
[1772747121523,3.54760606,89.08,89.036,10.06964745]
[1772747122225,10.101,89.078,89.041,10.06964745]
[1772747122425,3.54760606,89.07,89.028,10.06964745]
[1772747123428,3.54760606,89.07,89.031,10.06964745]
[1772747124120,3.54760606,89.07,89.035,10.06964745]
[1772747124326,9.41843448,89.088,89.035,10.06964745]
[1772747124626,9.41843448,89.088,89.05,10.06964745]
[1772747125126,3.54760606,89.08,89.05,10.06964745]
[1772747127626,9.41843448,89.088,89.05,10.06964745]
[1772747127827,3.54760606,89.08,89.05,10.06964745]
[1772747135928,3.54760606,89.08,89.051,9.47835957]
[1772747136129,3.54760606,89.09,89.051,9.47835957]
[1772747136331,3.54760606,89.1,89.051,9.47835957]
[1772747137431,3.54760606,89.1,89.061,9.47835957]
[1772747139540,3.54760606,89.1,89.063,9.47835957]
[1772747140740,9.58749077,89.11,89.05,3.54760606]
[1772747140741,13.13509683,89.11,89.07,9.47835957]
[1772747142644,13.13530381,89.11,89.073,9.47835957]
[1772747144645,13.13530381,89.11,89.076,9.47835957]
[1772747146649,3.54781304,89.11,89.076,9.47835957]
[1772747147152,13.13530381,89.11,89.076,9.47835957]
[1772747149055,3.54781304,89.1,89.066,9.47835957]
[1772747151056,9.58749077,89.105,89.067,9.47835957]
[1772747153758,9.58749077,89.119,89.067,9.47835957]
[1772747154461,9.58749077,89.119,89.08,10.101]
[1772747154462,9.58749077,89.118,89.08,10.101]
[1772747154961,9.58749077,89.118,89.067,9.47835957]
[1772747154962,3.54781304,89.11,89.067,9.47835957]
[1772747156459,3.54781304,89.11,89.074,9.47835957]
[1772747157558,10.097,89.117,89.075,10.102]
[1772747157765,3.54781304,89.11,89.075,19.58035957]
[1772747160256,3.54781304,89.11,89.075,9.47835957]
[1772747161867,13.50540546,89.11,89.075,9.47835957]
[1772747162662,10.098,89.106,89.075,9.47835957]
[1772747162867,3.54781304,89.09,89.05,9.82984942]
[1772747163266,13.50540546,89.09,89.05,9.82984942]
[1772747164368,13.50540546,89.09,89.051,10.105]
[1772747164666,13.50540546,89.09,89.05,9.82984942]
[1772747165064,3.54781304,89.09,89.059,9.82984942]
[1772747166570,3.54781304,89.09,89.061,9.82984942]
[1772747170270,3.54781304,89.1,89.061,9.82984942]
[1772747170571,3.54781304,89.1,89.064,9.82984942]
[1772747172872,9.95759242,89.099,89.064,9.82984942]
[1772747173371,3.54781304,89.09,89.064,9.82984942]
[1772747174370,9.95759242,89.089,89.051,9.82984942]
[1772747175373,9.95759242,89.089,89.052,10.104]
[1772747175574,3.54781304,89.09,89.051,9.82984942]
[1772747176273,3.54781304,89.1,89.051,9.82984942]
[1772747177272,9.95759242,89.099,89.051,9.82984942]
[1772747177466,3.54781304,89.09,89.06,10.103]
[1772747179675,9.95759242,89.098,89.063,9.82984942]
[1772747181077,3.54781304,89.09,89.064,10.103]
[1772747182576,3.54781304,89.09,89.057,10.104]
[1772747185879,3.54781304,89.1,89.065,9.82984942]
[1772747186583,13.50540546,89.11,89.065,9.82984942]
[1772747186883,3.54781304,89.11,89.078,9.82984942]
[1772747188386,3.54781304,89.11,89.079,10.101]
[1772747188883,3.54781304,89.11,89.079,20.07441042]
[1772747189082,3.54781304,89.11,89.08,9.97341042]
[1772747192182,3.54781304,89.11,89.082,10.101]
[1772747192389,3.54781304,89.12,89.083,10.33847162]
[1772747193288,3.54781304,89.11,89.083,10.33847162]
[1772747193479,3.54781304,89.11,89.09,10.1]
[1772747194090,9.87451388,89.12,89.096,10.099]
[1772747194290,3.54781304,89.13,89.096,20.43747162]
[1772747194890,3.54781304,89.12,89.096,20.43747162]
[1772747199491,3.54781304,89.12,89.097,10.33847162]
[1772747199691,3.54781304,89.12,89.1,10.33847162]
[1772747199889,3.54781304,89.13,89.1,10.33847162]
[1772747200492,9.87451388,89.157,89.109,10.33847162]
[1772747200793,3.54781304,89.15,89.109,10.33847162]
[1772747201492,3.54781304,89.15,89.122,10.33847162]
[1772747201788,13.42232692,89.17,89.122,10.33847162]
[1772747201980,9.87451388,89.169,89.122,10.33847162]
[1772747202385,9.87451388,89.169,89.13,10.095]
[1772747204089,3.54781304,89.16,89.13,10.095]
[1772747204489,3.5435952,89.16,89.13,10.095]
[1772747205696,3.5435952,89.16,89.13,20.43347162]
[1772747205892,3.5435952,89.16,89.131,10.33847162]
[1772747207195,9.87451388,89.169,89.131,10.33847162]
[1772747207396,3.5435952,89.16,89.131,10.33847162]
[1772747207694,9.87451388,89.169,89.131,10.33847162]
[1772747209692,9.87451388,89.169,89.077,21.00146966]
[1772747209693,3.5435952,89.18,89.136,10.33847162]
[1772747210094,3.5435952,89.17,89.136,10.33847162]
[1772747210494,3.5435952,89.17,89.144,10.094]
[1772747210995,9.87451388,89.169,89.137,10.095]
[1772747211193,3.5435952,89.16,89.137,10.095]
[1772747213000,9.87451388,89.169,89.137,10.095]
[1772747213998,3.5435952,89.17,89.141,10.33847162]
[1772747214700,9.87451388,89.169,89.133,10.095]
[1772747215896,9.87451388,89.169,89.133,20.43347162]
[1772747217901,9.87451388,89.169,89.136,10.095]
[1772747218696,9.87451388,89.169,89.129,10.096]
[1772747218898,3.5435952,89.16,89.129,20.43447162]
[1772747220696,3.5435952,89.16,89.13,10.1280988]
[1772747220899,9.87451388,89.169,89.136,20.2230988]
[1772747221101,3.5435952,89.16,89.136,10.095]
[1772747221303,10.61001028,89.159,89.122,10.096]
[1772747222006,10.61001028,89.159,89.126,10.1280988]
[1772747223406,3.5435952,89.14,89.117,10.097]
[1772747224811,3.5435952,89.14,89.111,10.1280988]
[1772747225301,3.5435952,89.14,89.113,10.097]
[1772747225701,3.5435952,89.12,89.071,10.1280988]
[1772747227407,10.61001028,89.141,89.093,10.1280988]
[1772747227604,3.5435952,89.13,89.093,10.1280988]
[1772747228517,3.5435952,89.13,89.103,10.099]
[1772747230308,10.61001028,89.129,89.097,10.1280988]
[1772747231816,10.61001028,89.129,89.099,10.099]
[1772747235422,10.61001028,89.129,89.097,10.1280988]
[1772747238528,10.61001028,89.129,89.099,10.099]
[1772747240925,10.61001028,89.129,89.097,10.1280988]
[1772747240926,3.5435952,89.12,89.097,10.1280988]
[1772747241126,3.5435952,89.12,89.092,10.1]
[1772747243729,10.61001028,89.129,89.092,10.1]
[1772747245826,10.61001028,89.129,89.098,10.099]
[1772747246329,10.61001028,89.129,89.099,10.1280988]
[1772747247136,3.5435952,89.13,89.099,10.1280988]
[1772747247319,10.61001028,89.14,89.102,10.1280988]
[1772747247320,14.15360548,89.14,89.102,10.1280988]
[1772747248434,14.15360548,89.14,89.106,10.33934977]
[1772747249525,14.15360548,89.14,89.109,10.098]
[1772747250930,3.5435952,89.15,89.109,10.54811942]
[1772747251434,9.74962465,89.152,89.109,10.54811942]
[1772747252234,3.5435952,89.16,89.109,10.54811942]
[1772747252434,3.5435952,89.16,89.123,10.54811942]
[1772747252635,9.74962465,89.159,89.123,10.54811942]
[1772747253435,9.74962465,89.159,89.124,10.096]
[1772747253636,3.5435952,89.15,89.124,10.096]
[1772747255138,9.74962465,89.171,89.131,10.54811942]
[1772747255437,3.5435952,89.16,89.131,10.54811942]
[1772747256436,3.5435952,89.16,89.133,10.095]
[1772747258231,3.5435952,89.16,89.131,10.54811942]
[1772747258642,9.74962465,89.159,89.125,10.096]
[1772747259943,9.74962465,89.159,89.131,10.095]
[1772747262835,3.5435952,89.16,89.132,10.54811942]
[1772747263041,3.5435952,89.16,89.095,20.199]
[1772747263042,3.5435952,89.16,89.135,10.54811942]
[1772747263736,3.5435952,89.16,89.136,10.095]
[1772747263935,9.74962465,89.174,89.136,10.095]
[1772747263936,3.5435952,89.17,89.136,10.095]
[1772747264137,9.74962465,89.169,89.135,10.54811942]
[1772747265744,3.5435952,89.16,89.129,10.096]
[1772747266445,3.54370759,89.16,89.13,10.54811942]
[1772747268449,9.74962465,89.169,89.13,10.54811942]
[1772747270249,3.54370759,89.18,89.146,10.54811942]
[1772747270452,3.54370759,89.17,89.134,10.54811942]
[1772747271550,3.54370759,89.17,89.136,10.095]
[1772747271747,9.74962465,89.169,89.136,10.095]
[1772747272052,3.54370759,89.16,89.111,10.54811942]
[1772747272645,9.74962465,89.169,89.13,10.54811942]
[1772747274450,9.74962465,89.169,89.132,10.54811942]
[1772747276340,9.74962465,89.169,89.133,10.095]
[1772747276544,9.74962465,89.169,89.134,10.54811942]
[1772747279449,9.74962465,89.184,89.14,10.54811942]
[1772747279756,3.54370759,89.19,89.141,10.54811942]
[1772747279947,10.1029145,89.189,89.141,10.54811942]
[1772747280153,3.54370759,89.18,89.141,10.54811942]
[1772747281456,3.54370759,89.18,89.152,10.093]
[1772747283455,1.95201849,89.212,89.11,9.99207065]
[1772747283456,3.54370759,89.16,89.11,9.99207065]
[1772747283652,13.64662209,89.16,89.11,9.99207065]
[1772747284951,3.54370759,89.17,89.127,9.99207065]
[1772747285157,10.1029145,89.177,89.127,9.99207065]
[1772747286462,10.1029145,89.177,89.145,10.094]
[1772747288463,3.54370759,89.18,89.146,9.99207065]
[1772747288962,10.1029145,89.179,89.146,9.99207065]
[1772747289261,10.1029145,89.179,89.138,10.095]
[1772747289662,3.54370759,89.17,89.138,10.095]
[1772747292268,3.54370759,89.17,89.138,20.08707065]
[1772747292972,3.54370759,89.17,89.141,10.094]
[1772747293272,10.1029145,89.179,89.142,9.99207065]
[1772747294477,10.1029145,89.179,89.15,10.093]
[1772747294679,10.1029145,89.179,89.142,9.99207065]
[1772747294876,20.1929145,89.179,89.142,20.08607065]
[1772747295574,3.54370759,89.16,89.119,9.99207065]
[1772747296978,10.1029145,89.181,89.142,9.99207065]
[1772747297272,3.54370759,89.17,89.142,9.99207065]
[1772747297472,3.54370759,89.17,89.145,10.094]
[1772747297874,10.1029145,89.169,89.125,9.99207065]
[1772747299380,10.1029145,89.169,89.137,10.095]
[1772747304377,10.1029145,89.169,89.135,9.99207065]
[1772747306882,10.1029145,89.169,89.136,9.99207065]
[1772747307186,3.54370759,89.17,89.136,9.99207065]
[1772747307781,3.54370759,89.17,89.147,10.094]
[1772747307981,13.64662209,89.18,89.147,10.094]
[1772747309488,10.60707338,89.179,89.14,10.094]
[1772747311088,3.54370759,89.17,89.14,10.094]
[1772747313787,3.54370759,89.15,89.112,9.97130932]
[1772747315484,3.54370759,89.15,89.121,10.097]
[1772747319495,3.54370759,89.16,89.128,9.97130932]
[1772747320987,3.54370759,89.16,89.13,10.096]
[1772747323395,10.21443214,89.163,89.13,10.096]
[1772747328392,10.21443214,89.163,89.13,20.06730932]
[1772747341095,10.79509263,89.16,89.123,10.096]
[1772747341300,10.79509263,89.159,89.123,10.096]
[1772747342503,10.093,89.157,89.123,10.096]
[1772747342707,10.79509263,89.156,89.123,10.096]
[1772747344907,10.79509263,89.168,89.124,10.00357197]
[1772747345210,10.79509263,89.167,89.124,10.00357197]
[1772747345813,8.32741816,89.19,89.124,10.00357197]
[1772747345814,10.091,89.172,89.124,10.00357197]
[1772747346015,17.17940368,89.178,89.124,10.00357197]
[1772747346405,10.79509263,89.179,89.131,10.00357197]
[1772747347513,10.79509263,89.179,89.13,3.54353353]
[1772747347514,10.79509263,89.179,89.146,10.094]
[1772747352211,14.33862616,89.19,89.158,10.00357197]
[1772747353110,10.79509263,89.189,89.158,10.00357197]
[1772747353413,20.88409263,89.189,89.158,10.00357197]
[1772747354220,10.79509263,89.188,89.158,10.00357197]
[1772747357024,3.54353353,89.18,89.158,10.00357197]
[1772747359621,3.54353353,89.19,89.158,10.00357197]
[1772747359828,10.79509263,89.196,89.158,10.00357197]
[1772747361321,10.79509263,89.206,89.168,10.00357197]
[1772747361622,10.43404325,89.233,89.15,3.54353353]
[1772747361623,10.79509263,89.245,89.19,3.54353353]
[1772747361825,1.95141646,89.252,89.212,10.00357197]
[1772747362025,10.79509263,89.255,89.212,10.00357197]
[1772747362421,3.54353353,89.25,89.212,10.00357197]
[1772747362725,10.082,89.249,89.212,10.00357197]
[1772747364227,3.54353353,89.25,89.212,10.00357197]
[1772747365525,3.54353353,89.25,89.214,10.086]
[1772747365730,3.54353353,89.26,89.215,10.00357197]
[1772747366936,14.33862616,89.26,89.215,10.00357197]
[1772747367431,14.33862616,89.26,89.216,10.086]
[1772747367630,14.33862616,89.26,89.217,10.00357197]
[1772747372139,3.54353353,89.25,89.217,10.00357197]
[1772747374132,14.33862616,89.26,89.217,10.00357197]
[1772747376537,10.88197423,89.259,89.217,10.00357197]
[1772747376938,10.081,89.258,89.217,10.00357197]
[1772747377138,10.88197423,89.257,89.217,10.00357197]
[1772747377733,10.88197423,89.257,89.218,10.086]
[1772747378140,3.54353353,89.24,89.201,9.88234945]
[1772747378434,10.88197423,89.249,89.201,9.88234945]
[1772747378836,10.88197423,89.249,89.209,10.087]
[1772747379030,10.88197423,89.249,89.21,9.88234945]
[1772747379838,10.88197423,89.249,89.217,19.96834945]
[1772747380041,3.54353353,89.26,89.218,9.88234945]
[1772747380340,3.54353353,89.26,89.228,9.88234945]
[1772747380540,10.88197423,89.261,89.228,9.88234945]
[1772747381142,10.88197423,89.261,89.229,10.084]
[1772747381344,10.88197423,89.259,89.217,9.88234945]
[1772747382641,10.88197423,89.259,89.222,10.085]
[1772747383935,10.88197423,89.259,89.228,10.084]
[1772747385137,10.88197423,89.259,89.235,10.084]
[1772747386843,10.88197423,89.259,89.228,10.084]
[1772747387743,10.88197423,89.259,89.234,10.084]
[1772747388738,14.42550776,89.27,89.234,10.084]
[1772747388937,3.54353353,89.26,89.234,10.084]
[1772747390446,3.53560599,89.26,89.234,10.084]
[1772747391751,10.88197423,89.27,89.234,10.084]
[1772747391949,3.53560599,89.26,89.234,10.084]
[1772747395357,3.53560599,89.26,89.234,19.96634945]
[1772747396048,14.41758022,89.27,89.237,10.083]
[1772747396646,3.53560599,89.26,89.237,10.083]
[1772747397251,3.53560599,89.26,89.235,9.88234945]
[1772747397455,10.88197423,89.263,89.199,9.88234945]
[1772747397656,1.95021351,89.292,89.161,20.185]
[1772747397657,3.53560599,89.26,89.211,9.88234945]
[1772747397847,3.53560599,89.26,89.216,9.88234945]
[1772747398659,3.53560599,89.26,89.21,3.53560599]
[1772747398660,3.53560599,89.26,89.23,10.084]
[1772747399556,3.53560599,89.26,89.228,9.88234945]
[1772747400153,10.46711981,89.259,89.212,10.086]
[1772747400350,10.46711981,89.259,89.211,9.89303059]
[1772747400557,3.53560599,89.27,89.211,9.89303059]
[1772747400954,10.43404325,89.314,89.159,156.998]
[1772747400955,3.53560599,89.28,89.236,9.89303059]
[1772747402158,10.46711981,89.289,89.247,9.89303059]
[1772747402462,3.53560599,89.28,89.247,9.89303059]
[1772747402863,10.46711981,89.289,89.247,9.89303059]
[1772747405865,3.53560599,89.28,89.247,9.89303059]
[1772747406567,10.46711981,89.279,89.237,9.89303059]
[1772747406761,3.53560599,89.26,89.225,9.89303059]
[1772747406962,10.46711981,89.259,89.225,9.89303059]
[1772747407365,3.53560599,89.26,89.225,9.89303059]
[1772747408462,3.53560599,89.26,89.226,10.085]
[1772747408663,3.53560599,89.26,89.227,9.89303059]
[1772747418871,3.53560599,89.26,89.226,10.085]
[1772747418872,3.53560599,89.25,89.214,9.89303059]
[1772747419468,10.46711981,89.258,89.218,9.89303059]
[1772747419674,3.53560599,89.26,89.218,9.89303059]
[1772747420374,3.53560599,89.26,89.229,10.084]
[1772747420875,3.53560599,89.26,89.218,9.89303059]
[1772747422074,3.53560599,89.27,89.228,9.89303059]
[1772747422276,3.53560599,89.26,89.228,9.89303059]
[1772747426774,10.46711981,89.259,89.213,9.89303059]
[1772747427080,3.53560599,89.24,89.213,9.89303059]
[1772747428075,3.53560599,89.24,89.214,10.086]
[1772747428576,3.53560599,89.25,89.217,10.79528859]
[1772747437276,3.53560599,89.25,89.218,10.086]
[1772747437882,3.53560599,89.25,89.223,10.085]
[1772747444291,10.69572218,89.249,89.217,10.086]
[1772747447590,10.082,89.248,89.211,10.69621175]
[1772747447786,3.53560599,89.22,89.189,10.69621175]
[1772747449387,3.53560599,89.23,89.196,10.088]
[1772747449594,3.53560599,89.24,89.197,10.69621175]
[1772747450102,14.23132817,89.24,89.197,10.69621175]
[1772747450494,14.23132817,89.24,89.2,10.088]
[1772747450695,14.23132817,89.24,89.2,20.78421175]
[1772747451601,3.53560599,89.23,89.2,20.78421175]
[1772747452491,3.53796196,89.23,89.2,20.78421175]
[1772747456401,3.53796196,89.22,89.188,10.69621175]
[1772747458204,13.93437964,89.278,89.121,157.065]
[1772747458205,3.53796196,89.23,89.197,10.69621175]
[1772747460303,10.81015598,89.252,89.213,10.75882085]
[1772747460507,10.81015598,89.249,89.213,10.75882085]
[1772747460804,3.53796196,89.23,89.181,10.75882085]
[1772747461204,3.53796196,89.22,89.181,10.75882085]
[1772747462511,3.53796196,89.22,89.186,10.75882085]
[1772747463213,3.53796196,89.22,89.196,10.088]
[1772747463408,3.53796196,89.22,89.197,10.75882085]
[1772747463609,14.34811794,89.23,89.197,10.75882085]
[1772747463804,3.53796196,89.23,89.197,10.75882085]
[1772747464005,3.53796196,89.24,89.197,10.75882085]
[1772747465510,3.53796196,89.24,89.205,10.087]
[1772747466011,3.53796196,89.23,89.205,10.087]
[1772747469720,3.53796196,89.23,89.205,20.84582085]
[1772747469921,3.53796196,89.24,89.21,10.086]
[1772747474120,3.53796196,89.24,89.219,10.085]
[1772747474328,3.53796196,89.25,89.22,10.75882085]
[1772747476621,3.53796196,89.25,89.175,20.181]
[1772747476622,3.53796196,89.24,89.208,10.75882085]
[1772747477926,3.53796196,89.24,89.213,10.086]
[1772747480130,10.082,89.249,89.214,10.75882085]
[1772747481326,10.81015598,89.259,89.218,10.75882085]
[1772747482432,3.53796196,89.26,89.225,10.75882085]
[1772747484132,3.53796196,89.27,89.225,10.75882085]
[1772747484331,3.53796196,89.27,89.192,20.178]
[1772747484332,3.53796196,89.28,89.231,10.75882085]
[1772747485230,3.53796196,89.29,89.253,10.082]
[1772747485425,3.53796196,89.29,89.254,10.75882085]
[1772747486532,10.078,89.289,89.254,10.75882085]
[1772747487232,3.53796196,89.29,89.254,10.75882085]
[1772747488930,10.078,89.289,89.254,10.75882085]
[1772747489234,20.59052879,89.289,89.254,10.75882085]
[1772747489734,3.53796196,89.28,89.254,10.75882085]
[1772747497033,10.14381659,89.259,89.194,10.71534688]
[1772747497337,20.155,89.291,89.194,10.71534688]
[1772747497338,3.53796196,89.23,89.194,10.71534688]
[1772747498440,8.93839976,89.278,89.148,20.187]
[1772747498441,3.53796196,89.22,89.171,10.71534688]
[1772747499547,3.53796196,89.22,89.185,10.71534688]
[1772747502048,3.53796196,89.23,89.189,10.71534688]
[1772747503447,3.53796196,89.23,89.194,10.71534688]
[1772747505445,3.53796196,89.22,89.194,10.71534688]
[1772747508450,3.53796196,89.22,89.183,10.089]
[1772747508656,3.53796196,89.22,89.184,10.71534688]
[1772747508853,3.53796196,89.21,89.161,10.71534688]
[1772747509057,3.53796196,89.2,89.161,10.71534688]
[1772747509355,3.53796196,89.18,89.137,10.71534688]
[1772747509757,3.53796196,89.17,89.137,10.71534688]
[1772747511259,3.53796196,89.17,89.098,20.199]
[1772747511260,3.53796196,89.18,89.139,10.71534688]
[1772747512460,3.53796196,89.17,89.139,10.71534688]
[1772747514558,3.542694,89.17,89.139,10.71534688]
[1772747516253,10.14381659,89.177,89.139,10.71534688]
[1772747516455,10.09,89.176,89.139,10.71534688]
[1772747516660,10.09,89.176,89.071,20.89284968]
[1772747516661,3.542694,89.16,89.121,10.71534688]
[1772747517356,3.542694,89.16,89.125,10.71534688]
[1772747518455,3.542694,89.16,89.127,10.71534688]
[1772747519458,20.17,89.225,89.075,20.204]
[1772747519459,3.542694,89.15,89.111,10.71534688]
[1772747519662,3.542694,89.14,89.111,10.71534688]
[1772747520060,3.542694,89.15,89.115,10.78041811]
[1772747520359,3.542694,89.15,89.053,157.184]
[1772747520360,3.542694,89.14,89.101,10.78041811]
[1772747520762,167.34235381,89.213,89.052,20.209]
[1772747520763,3.542694,89.15,89.105,10.78041811]
[1772747522461,3.542694,89.14,89.105,10.78041811]
[1772747523363,10.095,89.138,89.105,10.78041811]
[1772747524155,3.542694,89.14,89.105,10.78041811]
[1772747524667,9.825533,89.155,89.105,10.78041811]
[1772747524668,3.542694,89.15,89.105,10.78041811]
[1772747524868,3.542694,89.14,89.108,10.098]
[1772747525261,3.542694,89.14,89.105,10.78041811]
[1772747526465,3.542694,89.13,89.092,10.78041811]
[1772747526764,13.368227,89.13,89.092,10.78041811]
[1772747527364,3.542694,89.13,89.092,10.78041811]
[1772747527964,3.542694,89.13,89.093,10.78041811]
[1772747529467,3.542694,89.14,89.093,10.78041811]
[1772747529672,9.825533,89.162,89.101,10.78041811]
[1772747529863,3.542694,89.15,89.101,10.78041811]
[1772747531370,3.542694,89.16,89.113,10.78041811]
[1772747532274,3.542694,89.15,89.113,10.78041811]
[1772747533270,3.542694,89.14,89.099,10.78041811]
[1772747534368,3.542694,89.14,89.103,10.78041811]
[1772747535465,9.825533,89.139,89.095,10.1]
[1772747535675,3.542694,89.13,89.091,10.78041811]
[1772747536374,3.542694,89.12,89.071,10.78041811]
[1772747537465,3.542694,89.12,89.079,10.78041811]
[1772747538076,9.825533,89.119,89.079,10.78041811]
[1772747538478,9.825533,89.107,89.061,10.78041811]
[1772747539367,9.825533,89.107,89.064,10.78041811]
[1772747540074,9.825533,89.099,89.051,10.78041811]
[1772747540277,9.825533,89.099,88.972,177.0]
[1772747540278,3.542694,89.08,89.034,10.78041811]
[1772747540573,3.542694,89.08,88.96,157.35]
[1772747540574,157.055,89.128,88.983,10.78041811]
[1772747540768,157.045,89.133,88.957,157.355]
[1772747540769,3.542694,89.07,89.03,10.78041811]
[1772747542177,3.542694,89.06,89.03,10.78041811]
[1772747542677,13.644694,89.07,89.03,10.78041811]
[1772747543378,3.542694,89.07,89.03,10.78041811]
[1772747543978,13.646694,89.06,89.011,10.78041811]
[1772747544273,3.542694,89.06,89.011,10.78041811]
[1772747545379,3.542694,89.05,89.011,10.78041811]
[1772747545770,13.368227,89.07,89.021,10.78041811]
[1772747545976,9.825533,89.07,89.021,10.78041811]
[1772747546177,3.542694,89.06,89.021,10.78041811]
[1772747546570,3.542694,89.05,89.021,10.78041811]
[1772747547677,157.073,89.117,88.952,1.95477614]
[1772747547678,3.542694,89.04,89.003,10.78041811]
[1772747548977,3.542694,89.05,89.003,10.78041811]
[1772747549381,3.542694,89.05,89.005,9.50612708]
[1772747550079,3.542694,89.04,88.991,10.03335014]
[1772747550285,3.542694,89.03,88.991,10.03335014]
[1772747557479,9.72958261,89.043,88.978,10.03335014]
[1772747557683,11.22,89.089,88.961,10.03335014]
[1772747557684,9.72958261,89.023,88.961,10.03335014]
[1772747557883,9.72958261,89.023,88.901,20.73639493]
[1772747557884,10.108,89.019,88.973,10.03335014]
[1772747558476,3.542694,89.02,88.973,10.03335014]
[1772747558980,10.109,89.012,88.973,10.03335014]
[1772747559179,3.542694,89.01,88.973,10.03335014]
[1772747561886,3.542694,89.0,88.973,10.03335014]